fUSD/lending_fUSD_20260202
["ID","MTS","AMOUNT","RATE_DAILY","PERIOD"]
[404268465,1770018642239,-31152.14895376,0.00011916,2]
[404268466,1770018642251,-6799.4482,0.00011917,2]
[404268467,1770018642262,-1000.0,0.00011917,2]
[404268468,1770018642272,-33288.2505,0.00011917,2]
[404268469,1770018642284,-500.0,0.00011971,2]
[404268470,1770018642297,-198.08470513,0.00011971,2]
[404268471,1770018642307,-500.0,0.00011971,2]
[404268472,1770018642317,-500.0,0.00011971,2]
[404268473,1770018642328,-500.0,0.00011971,2]
[404268474,1770018642338,-500.0,0.00012026,2]
[404268475,1770018642348,-500.0,0.00012026,2]
[404268476,1770018642359,-383.0,0.00012026,2]
[404268477,1770018642369,-500.0,0.0001208,2]
[404268478,1770018642379,-309.28369003,0.0001208,2]
[404268479,1770018642389,-500.0,0.00012135,2]
[404268480,1770018642400,-494.0,0.0001217,2]
[404268481,1770018642410,-500.0,0.0001219,2]
[404268482,1770018642720,-250.0,0.00012201,2]
[404268483,1770018642733,-250.0,0.00012201,2]
[404268484,1770018642743,-300.0,0.00012201,2]
[404268485,1770018642753,-500.0,0.00012245,2]
[404268486,1770018642763,-464.53737307,0.00012245,2]
[404268487,1770018642773,-13924.38775799,0.00012313,2]
[404268488,1770018642783,-17614.4326096,0.00012313,2]
[404268489,1770018642795,-250.0,0.00012379,2]
[404268490,1770018642805,-500.21,0.00012381,2]
[404268491,1770018642815,-1600.0,0.0001242,2]
[404268492,1770018642824,-534.85967689,0.00012429,2]
[404268493,1770018642834,-534.85967689,0.00012429,2]
[404268494,1770018642843,-500.0,0.00012458,2]
[404268495,1770018642853,-500.0,0.00012519,2]
[404268496,1770018642862,-463.0,0.00012557,2]
[404268497,1770018642872,-168.71,0.00012606,2]
[404268498,1770018642882,-255.0,0.00012685,2]
[404268499,1770018642891,-420.0,0.00012757,2]
[404268500,1770018642901,-1421.0,0.00012758,2]
[404268501,1770018642911,-1680.0,0.00012778,2]
[404268502,1770018642920,-500.0,0.00012779,2]
[404268503,1770018642930,-300.0,0.00012779,2]
[404268504,1770018642939,-193.0,0.00012779,2]
[404268505,1770018642949,-500.0,0.00012793,2]
[404268506,1770018642958,-236.43,0.000128,2]
[404268507,1770018642967,-500.0,0.00013006,2]
[404268508,1770018642977,-13924.38775799,0.00013008,2]
[404268509,1770018642987,-17614.4326096,0.00013008,2]
[404268510,1770018642997,-500.0,0.00013067,2]
[404268511,1770018643006,-7805.66,0.00013151,2]
[404268512,1770018643016,-260.67628722,0.00013214,2]
[404268513,1770018643026,-361.23,0.00013278,2]
[404268514,1770018643035,-245.19,0.00013337,2]
[404268515,1770018643046,-500.0,0.00013341,2]
[404268516,1770018643056,-534.85967689,0.00013341,2]
[404268517,1770018643065,-534.85967689,0.00013341,2]
[404268518,1770018643075,-500.0,0.00013554,2]
[404268519,1770018643084,-10000.0,0.00013598,2]
[404268520,1770018643094,-500.0,0.00013615,2]
[404268521,1770018643104,-578.0,0.00013671,2]
[404268522,1770018643114,-500.0,0.00013698,2]
[404268523,1770018643123,-500.0,0.00013698,2]
[404268524,1770018643133,-500.0,0.00013698,2]
[404268525,1770018643143,-500.0,0.00013698,2]
[404268526,1770018643152,-500.0,0.00013698,2]
[404268527,1770018643161,-500.0,0.00013698,2]
[404268528,1770018643170,-500.0,0.00013698,2]
[404268529,1770018643180,-500.0,0.00013698,2]
[404268530,1770018643189,-500.0,0.00013698,2]
[404268531,1770018643200,-500.0,0.00013698,2]
[404268532,1770018643211,-500.0,0.00013698,2]
[404268533,1770018643220,-500.0,0.00013698,2]
[404268534,1770018643230,-500.0,0.00013698,2]
[404268535,1770018643241,-500.0,0.00013698,2]
[404268536,1770018643251,-500.0,0.00013698,2]
[404268537,1770018643260,-500.0,0.00013698,2]
[404268538,1770018643270,-500.0,0.00013698,2]
[404268539,1770018643281,-500.0,0.00013698,2]
[404268540,1770018643291,-500.0,0.00013698,2]
[404268541,1770018643301,-508.51455349,0.00013698,2]
[404268542,1770018643311,-500.0,0.00013698,2]
[404268543,1770018643320,-500.0,0.00013698,2]
[404268544,1770018643330,-500.0,0.00013698,2]
[404268545,1770018643339,-500.0,0.00013698,2]
[404268546,1770018643349,-500.0,0.00013698,2]
[404268547,1770018643359,-508.9071214,0.00013698,2]
[404268548,1770018643368,-500.0,0.00013698,2]
[404268549,1770018643377,-500.0,0.00013698,2]
[404268550,1770018643387,-500.0,0.00013698,2]
[404268551,1770018643397,-500.0,0.00013698,2]
[404268552,1770018643407,-500.0,0.00013698,2]
[404268553,1770018643416,-500.0,0.00013698,2]
[404268554,1770018643426,-327.30466151,0.00013698,2]
[404268555,1770018643435,-500.0,0.00013698,2]
[404268556,1770018643445,-345.62119018,0.00013698,2]
[404268557,1770018643454,-500.0,0.00013698,2]
[404268558,1770018643464,-500.0,0.00013698,2]
[404268559,1770018643473,-500.0,0.00013698,2]
[404268560,1770018643483,-500.0,0.00013698,2]
[404268561,1770018643494,-500.0,0.00013698,2]
[404268562,1770018643504,-500.0,0.00013698,2]
[404268563,1770018643514,-500.0,0.00013698,2]
[404268564,1770018643523,-500.0,0.00013698,2]
[404268565,1770018643533,-500.0,0.00013698,2]
[404268566,1770018643546,-500.0,0.00013698,2]
[404268567,1770018643556,-502.51921833,0.00013698,2]
[404268568,1770018643566,-500.0,0.00013698,2]
[404268569,1770018643575,-500.0,0.00013698,2]
[404268570,1770018643584,-500.0,0.00013698,2]
[404268571,1770018643594,-500.0,0.00013698,2]
[404268572,1770018643603,-500.0,0.00013698,2]
[404268573,1770018643613,-500.0,0.00013698,2]
[404268574,1770018643622,-500.0,0.00013698,2]
[404268575,1770018643631,-500.0,0.00013698,2]
[404268576,1770018643641,-500.0,0.00013698,2]
[404268577,1770018643650,-500.0,0.00013698,2]
[404268578,1770018643660,-500.0,0.00013698,2]
[404268579,1770018643669,-500.0,0.00013698,2]
[404268580,1770018643678,-500.0,0.00013698,2]
[404268581,1770018643688,-500.0,0.00013698,2]
[404268582,1770018643697,-500.0,0.00013698,2]
[404268583,1770018643707,-500.0,0.00013698,2]
[404268584,1770018643717,-500.0,0.00013698,2]
[404268585,1770018643727,-596.3421329,0.00013698,2]
[404268586,1770018643736,-500.0,0.00013698,2]
[404268587,1770018643746,-500.0,0.00013698,2]
[404268588,1770018643756,-500.0,0.00013698,2]
[404268589,1770018643766,-500.0,0.00013698,2]
[404268590,1770018643776,-500.0,0.00013698,2]
[404268591,1770018643785,-208.77047208,0.00013698,2]
[404268592,1770018643797,-507.04117268,0.00013698,2]
[404268593,1770018643807,-500.0,0.00013698,2]
[404268594,1770018643816,-469.64985738,0.00013698,2]
[404268595,1770018643826,-500.0,0.00013698,2]
[404268596,1770018643835,-500.0,0.00013698,2]
[404268597,1770018643845,-500.0,0.00013698,2]
[404268598,1770018643854,-500.0,0.00013698,2]
[404268599,1770018643864,-500.0,0.00013698,2]
[404268600,1770018643874,-500.0,0.00013698,2]
[404268601,1770018643883,-500.0,0.00013698,2]
[404268602,1770018643893,-175.64646883,0.00013698,2]
[404268603,1770018643903,-500.0,0.00013698,2]
[404268604,1770018643912,-500.0,0.00013698,2]
[404268605,1770018643921,-500.0,0.00013698,2]
[404268606,1770018643930,-244.52182497,0.00013698,2]
[404268607,1770018643939,-526.72459335,0.00013698,2]
[404268608,1770018643949,-516.16418367,0.00013698,2]
[404268609,1770018643959,-500.0,0.00013698,2]
[404268610,1770018643968,-500.0,0.00013698,2]
[404268611,1770018643978,-500.0,0.00013698,2]
[404268612,1770018643987,-502.83428693,0.00013698,2]
[404268613,1770018643996,-586.19962979,0.00013698,2]
[404268614,1770018644006,-500.0,0.00013698,2]
[404268615,1770018644015,-500.0,0.00013698,2]
[404268616,1770018644024,-500.0,0.00013698,2]
[404268617,1770018644034,-500.0,0.00013698,2]
[404268618,1770018644047,-509.63945804,0.00013698,2]
[404268619,1770018644057,-500.0,0.00013698,2]
[404268620,1770018644067,-500.0,0.00013698,2]
[404268621,1770018644076,-500.0,0.00013698,2]
[404268622,1770018644085,-500.0,0.00013698,2]
[404268623,1770018644095,-500.0,0.00013698,2]
[404268624,1770018644104,-365.11189625,0.00013698,2]
[404268625,1770018644113,-500.0,0.00013698,2]
[404268626,1770018644123,-500.0,0.00013698,2]
[404268627,1770018644132,-500.0,0.00013698,2]
[404268628,1770018644142,-500.0,0.00013698,2]
[404268629,1770018644151,-193.34712914,0.00013698,2]
[404268630,1770018644160,-500.0,0.00013698,2]
[404268631,1770018644170,-500.0,0.00013698,2]
[404268632,1770018644179,-500.0,0.00013698,2]
[404268633,1770018644189,-500.0,0.00013698,2]
[404268634,1770018644200,-500.0,0.00013698,2]
[404268635,1770018644211,-500.0,0.00013698,2]
[404268637,1770018644221,-500.0,0.00013698,2]
[404268639,1770018644230,-500.0,0.00013698,2]
[404268641,1770018644242,-500.0,0.00013698,2]
[404268642,1770018644251,-500.0,0.00013698,2]
[404268643,1770018644261,-500.0,0.00013698,2]
[404268645,1770018644272,-500.0,0.00013698,2]
[404268647,1770018644281,-500.0,0.00013698,2]
[404268649,1770018644292,-500.0,0.00013698,2]
[404268651,1770018644303,-504.58121564,0.00013698,2]
[404268653,1770018644312,-500.0,0.00013698,2]
[404268655,1770018644322,-500.0,0.00013698,2]
[404268657,1770018644332,-500.0,0.00013698,2]
[404268659,1770018644341,-233.22890067,0.00013698,2]
[404268661,1770018644351,-500.0,0.00013698,2]
[404268663,1770018644362,-500.0,0.00013698,2]
[404268665,1770018644371,-500.0,0.00013698,2]
[404268667,1770018644381,-500.0,0.00013698,2]
[404268669,1770018644390,-500.0,0.00013698,2]
[404268670,1770018644399,-512.55184272,0.00013698,2]
[404268671,1770018644408,-150.97,0.000137,2]
[404268672,1770018644418,-150.97,0.000137,2]
[404268673,1770018644427,-13924.38775799,0.00013704,2]
[404268674,1770018644438,-17614.4326096,0.00013704,2]
[404268675,1770018644447,-1600.0,0.000138,2]
[404268676,1770018644457,-433.0,0.00013846,2]
[404268677,1770018644466,-500.0,0.00013888,2]
[404268678,1770018644476,-151.0,0.00013971,2]
[404268679,1770018644485,-500.0,0.00013973,2]
[404268680,1770018644494,-362.10232148,0.00013973,2]
[404268681,1770018644504,-500.83637505,0.00013973,2]
[404268682,1770018644513,-164.70227396,0.00013973,2]
[404268683,1770018644523,-170.36367963,0.00013973,2]
[404268684,1770018644533,-500.0,0.00013973,2]
[404268685,1770018644543,-541.62569807,0.00013973,2]
[404268686,1770018644552,-500.0,0.00013973,2]
[404268687,1770018644561,-500.0,0.00013973,2]
[404268688,1770018644571,-446.80882298,0.00013973,2]
[404268689,1770018644580,-500.0,0.00013973,2]
[404268690,1770018644590,-500.0,0.00013973,2]
[404268691,1770018644599,-500.0,0.00013973,2]
[404268692,1770018644609,-500.0,0.00013973,2]
[404268693,1770018644618,-487.48417293,0.00013973,2]
[404268694,1770018644628,-500.0,0.00013973,2]
[404268695,1770018644637,-501.53662804,0.00013973,2]
[404268696,1770018644647,-500.0,0.00013973,2]
[404268697,1770018644657,-500.0,0.00013973,2]
[404268698,1770018644666,-500.0,0.00013973,2]
[404268699,1770018644676,-500.12230816,0.00013973,2]
[404268700,1770018644689,-500.0,0.00013973,2]
[404268701,1770018644698,-500.0,0.00013973,2]
[404268702,1770018644708,-500.0,0.00013973,2]
[404268703,1770018644719,-587.0,0.00014009,2]
[404268704,1770018644728,-151.0,0.00014043,2]
[404268705,1770018644737,-151.0,0.00014052,2]
[404268706,1770018644747,-151.0,0.00014052,2]
[404268707,1770018644756,-151.0,0.00014052,2]
[404268708,1770018644765,-2351.0,0.00014055,2]
[404268709,1770018644774,-151.0,0.00014078,2]
[404268710,1770018644784,-500.0,0.00014082,2]
[404268711,1770018644794,-151.0,0.00014149,2]
[404268712,1770018644803,-151.0,0.0001416,2]
[404268713,1770018644812,-256.05,0.0001416,2]
[404268714,1770018644821,-151.0,0.0001416,2]
[404268715,1770018644830,-500.0,0.00014162,2]
[404268716,1770018644840,-168.71,0.00014181,2]
[404268717,1770018644849,-534.85967689,0.00014253,2]
[404268718,1770018644858,-534.85967689,0.00014253,2]
[404268719,1770018644868,-1503.0,0.0001433,2]
[404268720,1770018644877,-13924.38775799,0.000144,2]
[404268721,1770018644886,-17614.4326096,0.000144,2]
[404268722,1770018644895,-500.0,0.00014436,2]
[404268723,1770018644905,-745.65714443,0.00014473,2]
[404268724,1770018644915,-1967.80100159,0.00014473,2]
[404268725,1770018644926,-3471.43421771,0.00014473,2]
[404268726,1770018644936,-506.79391477,0.00014521,2]
[404268727,1770018644946,-233.72893135,0.00014521,2]
[404268728,1770018644956,-169.47739756,0.00014521,2]
[404268729,1770018644965,-501.171316,0.00014521,2]
[404268730,1770018644975,-1000.0,0.00014521,2]
[404268731,1770018644987,-1000.0,0.00014521,2]
[404268732,1770018644996,-1000.0,0.00014521,2]
[404268733,1770018645006,-1000.0,0.00014521,2]
[404268734,1770018645015,-354.38080813,0.00014521,2]
[404268735,1770018645025,-1000.0,0.00014521,2]
[404268736,1770018645034,-156.95111861,0.00014521,2]
[404268737,1770018645046,-1503.0,0.00014608,2]
[404268738,1770018645055,-1503.0,0.00014608,2]
[404268739,1770018645064,-1503.0,0.00014608,2]
[404268740,1770018645073,-1503.0,0.00014608,2]
[404268741,1770018645082,-1503.0,0.00014608,2]
[404268742,1770018645091,-1503.0,0.00014608,2]
[404268743,1770018645101,-159.35631536,0.00014608,2]
[404268744,1770018645111,-1503.0,0.00014608,2]
[404268745,1770018645120,-1503.0,0.00014608,2]
[404268746,1770018645129,-151.0,0.00014608,2]
[404268747,1770018645139,-1503.0,0.00014608,2]
[404268748,1770018645149,-1503.0,0.00014608,2]
[404268749,1770018645159,-1503.0,0.00014608,2]
[404268750,1770018645168,-151.0,0.00014608,2]
[404268751,1770018645177,-1503.0,0.00014608,2]
[404268752,1770018645187,-1503.0,0.00014608,2]
[404268753,1770018645196,-1503.0,0.00014608,2]
[404268754,1770018645208,-151.0,0.00014608,2]
[404268755,1770018645218,-1503.0,0.00014608,2]
[404268756,1770018645227,-151.0,0.00014608,2]
[404268757,1770018645237,-1503.0,0.00014608,2]
[404268758,1770018645247,-151.0,0.00014608,2]
[404268759,1770018645257,-1503.0,0.00014608,2]
[404268760,1770018645266,-1503.0,0.00014608,2]
[404268761,1770018645277,-151.0,0.00014608,2]
[404268762,1770018645287,-1503.0,0.00014608,2]
[404268763,1770018645298,-1503.0,0.00014608,2]
[404268764,1770018645307,-151.0,0.00014608,2]
[404268765,1770018645317,-1503.0,0.00014608,2]
[404268766,1770018645327,-1503.0,0.00014608,2]
[404268767,1770018645336,-151.0,0.00014608,2]
[404268768,1770018645346,-1503.0,0.00014608,2]
[404268769,1770018645356,-151.0,0.00014608,2]
[404268770,1770018645365,-1503.0,0.00014608,2]
[404268771,1770018645388,-1503.0,0.00014608,2]
[404268772,1770018645401,-1503.0,0.00014608,2]
[404268773,1770018645411,-151.0,0.00014608,2]
[404268774,1770018645421,-1503.0,0.00014608,2]
[404268775,1770018645431,-1503.0,0.00014608,2]
[404268776,1770018645441,-1503.0,0.00014608,2]
[404268777,1770018645452,-151.0,0.00014608,2]
[404268778,1770018645462,-1503.0,0.00014608,2]
[404268779,1770018645472,-1273.90301283,0.00014608,2]
[404268780,1770018645482,-151.0,0.00014608,2]
[404268781,1770018645491,-1503.0,0.00014608,2]
[404268782,1770018645501,-151.0,0.00014608,2]
[404268783,1770018645512,-151.0,0.00014608,2]
[404268784,1770018645522,-165.75340433,0.00014608,2]
[404268785,1770018645532,-167.26442502,0.00014608,2]
[404268786,1770018645544,-151.0,0.00014608,2]
[404268787,1770018645554,-151.0,0.00014608,2]
[404268788,1770018645563,-151.0,0.00014608,2]
[404268789,1770018645574,-151.0,0.00014608,2]
[404268790,1770018645584,-151.0,0.00014608,2]
[404268791,1770018645594,-151.0,0.00014608,2]
[404268792,1770018645603,-151.0,0.00014608,2]
[404268793,1770018645613,-151.0,0.00014608,2]
[404268794,1770018645623,-151.0,0.00014608,2]
[404268795,1770018645633,-151.0,0.00014608,2]
[404268796,1770018645642,-151.0,0.00014608,2]
[404268797,1770018645653,-151.0,0.00014608,2]
[404268798,1770018645662,-151.0,0.00014608,2]
[404268799,1770018645672,-151.0,0.00014608,2]
[404268800,1770018645682,-221.35945372,0.00014608,2]
[404268801,1770018645691,-151.0,0.00014608,2]
[404268802,1770018645701,-151.0,0.00014608,2]
[404268803,1770018645711,-151.0,0.00014608,2]
[404268804,1770018645720,-154.39852375,0.00014608,2]
[404268805,1770018645730,-250.0,0.00014656,2]
[404268806,1770018645745,-500.0,0.0001471,2]
[404268807,1770018645755,-260.67628722,0.00014776,2]
[404268808,1770018645765,-5809.64110209,0.00014859,2]
[404268809,1770018645775,-500.0,0.00014984,2]
[404268810,1770018645785,-500.0,0.00014999,2]
[404268811,1770018645797,-500.21,0.00015051,2]
[404268812,1770018645808,-578.20924308,0.00015068,2]
[404268813,1770018645817,-500.0,0.00015068,2]
[404268814,1770018645827,-859.80605061,0.00015068,2]
[404268815,1770018645837,-500.0,0.00015068,2]
[404268816,1770018645848,-500.0,0.00015068,2]
[404268817,1770018645858,-500.0,0.00015068,2]
[404268818,1770018645869,-250.0,0.00015068,2]
[404268819,1770018645879,-250.0,0.00015068,2]
[404268820,1770018645888,-500.0,0.00015068,2]
[404268821,1770018645898,-250.0,0.00015068,2]
[404268822,1770018645908,-250.0,0.00015068,2]
[404268823,1770018645918,-500.0,0.00015068,2]
[404268824,1770018645928,-250.0,0.00015068,2]
[404268825,1770018645937,-250.0,0.00015068,2]
[404268826,1770018645947,-500.0,0.00015068,2]
[404268827,1770018645957,-250.0,0.00015068,2]
[404268828,1770018645967,-250.0,0.00015068,2]
[404268829,1770018645978,-500.0,0.00015068,2]
[404268830,1770018645988,-250.0,0.00015068,2]
[404268831,1770018645998,-250.0,0.00015068,2]
[404268832,1770018646008,-500.0,0.00015068,2]
[404268833,1770018646018,-250.0,0.00015068,2]
[404268834,1770018646028,-250.0,0.00015068,2]
[404268835,1770018646037,-500.0,0.00015068,2]
[404268836,1770018646048,-250.0,0.00015068,2]
[404268837,1770018646058,-250.0,0.00015068,2]
[404268838,1770018646067,-500.0,0.00015068,2]
[404268839,1770018646077,-250.0,0.00015068,2]
[404268840,1770018646087,-250.0,0.00015068,2]
[404268841,1770018646102,-250.0,0.00015068,2]
[404268842,1770018646112,-250.0,0.00015068,2]
[404268843,1770018646122,-250.0,0.00015068,2]
[404268844,1770018646132,-250.0,0.00015068,2]
[404268845,1770018646142,-250.0,0.00015068,2]
[404268846,1770018646153,-250.0,0.00015068,2]
[404268847,1770018646163,-322.6107,0.00015068,2]
[404268848,1770018646173,-500.0,0.00015068,2]
[404268849,1770018646184,-500.0,0.00015068,2]
[404268850,1770018646195,-500.0,0.00015068,2]
[404268851,1770018646210,-500.0,0.00015068,2]
[404268852,1770018646220,-500.0,0.00015068,2]
[404268853,1770018646230,-500.0,0.00015068,2]
[404268854,1770018646242,-721.12765535,0.00015068,2]
[404268855,1770018646252,-500.0,0.00015068,2]
[404268856,1770018646263,-174.61919141,0.00015068,2]
[404268857,1770018646274,-500.0,0.00015068,2]
[404268858,1770018646284,-500.0,0.00015068,2]
[404268859,1770018646295,-500.0,0.00015068,2]
[404268860,1770018646306,-344.38825217,0.00015068,2]
[404268861,1770018646316,-250.0,0.00015068,2]
[404268862,1770018646327,-250.0,0.00015068,2]
[404268863,1770018646338,-250.0,0.00015068,2]
[404268864,1770018646348,-250.0,0.00015068,2]
[404268865,1770018646358,-168.90333538,0.00015068,2]
[404268866,1770018646369,-250.0,0.00015068,2]
[404268867,1770018646380,-250.0,0.00015068,2]
[404268868,1770018646391,-250.0,0.00015068,2]
[404268869,1770018646401,-250.0,0.00015068,2]
[404268870,1770018646412,-1428.38747117,0.00015068,2]
[404268872,1770018646422,-250.0,0.00015068,2]
[404268873,1770018646432,-151.49674582,0.00015068,2]
[404268874,1770018646441,-250.0,0.00015068,2]
[404268875,1770018646451,-250.0,0.00015068,2]
[404268876,1770018646462,-209.40437684,0.00015068,2]
[404268877,1770018646476,-209.40437684,0.00015068,2]
[404268878,1770018646487,-250.0,0.00015068,2]
[404268879,1770018646496,-250.0,0.00015068,2]
[404268880,1770018646507,-209.40437684,0.00015068,2]
[404268881,1770018646517,-250.0,0.00015068,2]
[404268882,1770018646527,-250.0,0.00015068,2]
[404268883,1770018646538,-250.0,0.00015068,2]
[404268884,1770018646550,-250.0,0.00015068,2]
[404268885,1770018646560,-250.0,0.00015068,2]
[404268886,1770018646570,-250.0,0.00015068,2]
[404268887,1770018646580,-250.0,0.00015068,2]
[404268888,1770018646590,-250.0,0.00015068,2]
[404268889,1770018646600,-250.0,0.00015068,2]
[404268890,1770018646610,-1500.0,0.00015068,2]
[404268891,1770018646619,-1500.0,0.00015068,2]
[404268892,1770018646630,-1072.82089826,0.00015068,2]
[404268893,1770018646640,-770.24622109,0.00015068,2]
[404268894,1770018646650,-1500.0,0.00015068,2]
[404268895,1770018646660,-284.66,0.00015068,2]
[404268896,1770018646670,-13924.38775799,0.00015095,2]
[404268897,1770018646680,-17614.4326096,0.00015095,2]
[404268898,1770018646689,-217.15233878,0.00015123,2]
[404268899,1770018646699,-225.18697532,0.00015178,2]
[404268900,1770018646709,-1600.0,0.0001518,2]
[404268901,1770018646718,-233.51889341,0.00015233,2]
[404268902,1770018646728,-316.57133444,0.00015258,2]
[404268903,1770018646739,-175.0,0.00015288,2]
[404268904,1770018646749,-242.15909246,0.00015288,2]
[404268905,1770018646760,-251.11897888,0.00015343,2]
[404268906,1770018646770,-823.0,0.00015385,2]
[404268907,1770018646780,-260.4103811,0.00015398,2]
[404268908,1770018646792,-270.0455652,0.00015453,2]
[404268909,1770018646802,-2719.0,0.00015461,2]
[404268910,1770018646813,-500.63586771,0.00015473,2]
[404268911,1770018646823,-500.46237197,0.00015473,2]
[404268912,1770018646836,-163.34993731,0.00015473,2]
[404268913,1770018646847,-163.12661798,0.00015473,2]
[404268914,1770018646857,-500.0,0.00015473,2]
[404268915,1770018647152,-500.0,0.00015473,2]
[404268916,1770018647163,-511.82569439,0.00015473,2]
[404268917,1770018647173,-500.0,0.00015473,2]
[404268918,1770018647182,-500.40906893,0.00015473,2]
[404268919,1770018647192,-574.06272579,0.00015473,2]
[404268920,1770018647205,-486.90150068,0.00015473,2]
[404268921,1770018647215,-464.35211832,0.00015473,2]
[404268922,1770018647225,-151.07783782,0.00015473,2]
[404268923,1770018647235,-500.0,0.00015473,2]
[404268924,1770018647245,-500.0,0.00015473,2]
[404268925,1770018647255,-500.0,0.00015473,2]
[404268926,1770018647266,-160.54295648,0.00015473,2]
[404268927,1770018647276,-500.0,0.00015473,2]
[404268928,1770018647287,-500.0,0.00015473,2]
[404268929,1770018647297,-500.0,0.00015473,2]
[404268930,1770018647307,-500.0,0.00015473,2]
[404268931,1770018647317,-500.0,0.00015473,2]
[404268932,1770018647327,-500.0,0.00015473,2]
[404268933,1770018647337,-500.0,0.00015473,2]
[404268934,1770018647347,-500.0,0.00015473,2]
[404268935,1770018647357,-500.0,0.00015473,2]
[404268936,1770018647366,-500.0,0.00015473,2]
[404268937,1770018647376,-500.0,0.00015473,2]
[404268938,1770018647386,-163.46067997,0.00015473,2]
[404268939,1770018647395,-200.70028911,0.00015473,2]
[404268940,1770018647405,-500.0,0.00015473,2]
[404268941,1770018647415,-500.0,0.00015473,2]
[404268942,1770018647424,-500.0,0.00015473,2]
[404268943,1770018647435,-501.12989903,0.00015473,2]
[404268944,1770018647445,-500.0,0.00015473,2]
[404268945,1770018647455,-161.45537985,0.00015473,2]
[404268946,1770018647465,-336.43827265,0.00015473,2]
[404268947,1770018647474,-500.0,0.00015473,2]
[404268948,1770018647484,-500.0,0.00015473,2]
[404268949,1770018647494,-500.0,0.00015473,2]
[404268950,1770018647504,-500.0,0.00015473,2]
[404268951,1770018647514,-501.29169705,0.00015473,2]
[404268952,1770018647537,-500.0,0.00015473,2]
[404268953,1770018647552,-500.0,0.00015473,2]
[404268954,1770018647563,-522.30858015,0.00015473,2]
[404268955,1770018647574,-500.0,0.00015473,2]
[404268956,1770018647585,-500.62768041,0.00015473,2]
[404268957,1770018647596,-559.67308476,0.00015473,2]
[404268958,1770018647607,-500.6120606,0.00015473,2]
[404268959,1770018647617,-501.33451157,0.00015473,2]
[404268960,1770018647628,-550.09529227,0.00015473,2]
[404268961,1770018647639,-500.0,0.00015473,2]
[404268962,1770018647650,-500.0,0.00015473,2]
[404268963,1770018647661,-500.0,0.00015473,2]
[404268964,1770018647671,-185.46503654,0.00015473,2]
[404268965,1770018647683,-500.41005015,0.00015473,2]
[404268966,1770018647693,-512.94754167,0.00015473,2]
[404268967,1770018647703,-500.0,0.00015473,2]
[404268968,1770018647714,-500.0,0.00015473,2]
[404268969,1770018647724,-500.0,0.00015473,2]
[404268970,1770018647734,-500.0,0.00015473,2]
[404268971,1770018647745,-291.61164288,0.00015473,2]
[404268972,1770018647755,-500.0,0.00015473,2]
[404268973,1770018647765,-500.0,0.00015473,2]
[404268974,1770018647776,-500.0,0.00015473,2]
[404268975,1770018647786,-500.0,0.00015473,2]
[404268976,1770018647801,-500.0,0.00015473,2]
[404268977,1770018647811,-500.0,0.00015473,2]
[404268978,1770018647822,-280.03725112,0.00015508,2]
[404268979,1770018647833,-290.39862941,0.00015563,2]
[404268980,1770018647843,-891.61887448,0.00015616,2]
[404268981,1770018647854,-181.08010149,0.00015616,2]